fUST/lending_fUST_20250927
["ID","MTS","AMOUNT","RATE_DAILY","PERIOD"]
[387848040,1758928168790,276.58227828,0.00025068,15]
[387848042,1758928196687,4974.1173645,0.00024931,2]
[387848043,1758928200194,153.56425783,0.00025205,2]
[387848044,1758928203154,4494.0435195,0.00025205,4]
[387848045,1758928203178,633.7370935,0.00025205,4]
[387848046,1758928205315,3734.61372104,0.00025205,2]
[387848047,1758928228988,2038.47413596,0.00025205,2]
[387848092,1758928232639,-500.0,0.000253,2]
[387848093,1758928232649,-355.6453578,0.00025581,2]
[387848094,1758928232659,-300.0,0.00025745,2]
[387848095,1758928232668,-300.0,0.00025745,2]
[387848096,1758928232678,-300.0,0.00025745,2]
[387848097,1758928232688,-1200.0,0.00025745,2]
[387848098,1758928232699,-167.73566627,0.00025746,2]
[387848099,1758928232708,-500.0,0.00025746,2]
[387848100,1758928232719,-500.0,0.00025746,2]
[387848101,1758928232729,-500.0,0.00025746,2]
[387848102,1758928232738,-500.0,0.00025746,2]
[387848103,1758928232748,-500.0,0.00025746,2]
[387848104,1758928232757,-500.0,0.00025746,2]
[387848105,1758928232766,-500.0,0.00025746,2]
[387848106,1758928232776,-500.0,0.00025746,2]
[387848107,1758928232786,-429.44111965,0.00025746,2]
[387848108,1758928232795,-323.90140757,0.00025746,2]
[387848109,1758928232805,-500.0,0.00025746,2]
[387848110,1758928232814,-500.0,0.00025746,2]
[387848111,1758928232824,-500.0,0.00025746,2]
[387848112,1758928232834,-514.07726509,0.00025746,2]
[387848113,1758928232843,-500.0,0.00025746,2]
[387848114,1758928232852,-500.0,0.00025746,2]
[387848115,1758928232862,-500.0,0.00025746,2]
[387848116,1758928232871,-500.0,0.00025746,2]
[387848117,1758928232880,-500.0,0.00025746,2]
[387848118,1758928232890,-627.18819567,0.00025746,2]
[387848119,1758928232899,-304.12792425,0.00025746,2]
[387848120,1758928232909,-500.0,0.00025746,2]
[387848121,1758928232918,-167.6600721,0.00025746,2]
[387848122,1758928232928,-500.0,0.00025746,2]
[387848123,1758928232937,-500.0,0.00025746,2]
[387848124,1758928232947,-500.0,0.00025746,2]
[387848125,1758928232958,-380.07675729,0.00025746,2]
[387848233,1758928238854,-300.67718038,0.00025745,2]
[387848234,1758928238865,-443.84607142,0.00025745,2]
[387848235,1758928238876,-624.79105804,0.00025745,2]
[387848236,1758928238886,-624.79105804,0.00025745,2]
[387848237,1758928238897,-624.79105804,0.00025745,2]
[387848238,1758928238908,-624.79105804,0.00025745,2]
[387848239,1758928238918,-624.79105804,0.00025745,2]
[387848240,1758928238928,-624.79105804,0.00025745,2]
[387848241,1758928238938,-624.79105804,0.00025745,2]
[387848242,1758928238949,-624.79105804,0.00025745,2]
[387848243,1758928238959,-624.79105804,0.00025745,2]
[387848244,1758928238970,-624.79105804,0.00025745,2]
[387848245,1758928238981,-119.92324271,0.00025746,2]
[387848246,1758928238991,-500.0,0.00025746,2]
[387848247,1758928239001,-500.0,0.00025746,2]
[387848248,1758928239011,-500.0,0.00025746,2]
[387848249,1758928239021,-500.0,0.00025746,2]
[387848250,1758928239031,-462.7031909,0.00025746,2]
[387848251,1758928239042,-500.0,0.00025746,2]
[387848252,1758928239052,-500.0,0.00025746,2]
[387848253,1758928239062,-499.99999999,0.00025746,2]
[387848254,1758928239071,-34811.61852679,0.00025746,2]
[387848255,1758928239081,-174.00897462,0.00025747,2]
[387848256,1758928239090,-500.0,0.00025773,2]
[387848257,1758928239100,-500.0,0.00025773,2]
[387848258,1758928239110,-504.01996578,0.00025773,2]
[387848259,1758928239120,-483.76639083,0.00025773,2]
[387848260,1758928239130,-501.53364087,0.00025773,2]
[387848261,1758928239140,-500.0,0.00025773,2]
[387848262,1758928239150,-500.0,0.00025773,2]
[387848263,1758928239160,-500.0,0.00025773,2]
[387848264,1758928239170,-500.0,0.00025773,2]
[387848265,1758928239180,-500.0,0.00025773,2]
[387848266,1758928239190,-500.0,0.00025773,2]
[387848267,1758928239200,-500.0,0.00025773,2]
[387848268,1758928239210,-500.0,0.00025773,2]
[387848269,1758928239220,-500.0,0.00025773,2]
[387848270,1758928239230,-500.0,0.00025773,2]
[387848271,1758928239241,-500.0,0.00025773,2]
[387848272,1758928239251,-500.0,0.00025773,2]
[387848273,1758928239261,-253.580134,0.00025847,2]
[387848274,1758928239271,-1000.0,0.00026321,2]
[387848275,1758928239282,-500.0,0.00026321,2]
[387848276,1758928239292,-471.31682989,0.00026321,2]
[387848277,1758928239303,-500.0,0.00026321,2]
[387848278,1758928239314,-1003.68549249,0.00026321,2]
[387848279,1758928239324,-503.15772695,0.00026321,2]
[387848280,1758928239335,-1000.0,0.00026321,2]
[387848281,1758928239346,-1000.0,0.00026321,2]
[387848282,1758928239358,-1000.0,0.00026321,2]
[387848283,1758928239371,-1000.0,0.00026321,2]
[387848284,1758928239382,-1000.0,0.00026321,2]
[387848285,1758928239393,-1000.0,0.00026321,2]
[387848286,1758928239403,-1000.0,0.00026321,2]
[387848287,1758928239415,-497.26047151,0.00026321,2]
[387848288,1758928239423,-400.53955865,0.00026396,2]
[387848289,1758928239432,-644.79157611,0.00026743,2]
[387848290,1758928239443,-1200.0,0.00026838,2]
[387848291,1758928239454,-500.0,0.00026838,2]
[387848292,1758928239465,-160.0,0.0002684,2]
[387848293,1758928239476,-292.807,0.00026843,14]
[387848294,1758928239487,-1500.0,0.00026868,2]
[387848295,1758928239497,-1500.0,0.00026868,2]
[387848296,1758928239507,-1500.0,0.00026868,2]
[387848297,1758928239518,-716.13437948,0.00026868,2]
[387848298,1758928239529,-772.70811018,0.00026868,2]
[387848299,1758928239540,-1500.0,0.00026868,2]
[387848300,1758928239550,-1500.0,0.00026868,2]
[387848301,1758928239564,-1500.0,0.00026868,2]
[387848302,1758928239577,-500.0,0.00026873,2]
[387848303,1758928239588,-500.0,0.00026873,2]
[387848304,1758928239686,-500.0,0.00026873,2]
[387848305,1758928239703,-500.0,0.00026873,2]
[387848306,1758928239714,-500.0,0.00026873,2]
[387848307,1758928239725,-614.72602743,0.00026873,2]
[387848308,1758928239735,-500.0,0.00026873,2]
[387848309,1758928239747,-500.0,0.00026873,2]
[387848310,1758928239758,-301.5938241,0.00026873,2]
[387848311,1758928239769,-501.27566184,0.00026873,2]
[387848312,1758928239780,-500.0,0.00026873,2]
[387848313,1758928239790,-500.0,0.00026873,2]
[387848314,1758928239801,-449.95627957,0.00026873,2]
[387848315,1758928239811,-500.0,0.00026873,2]
[387848316,1758928239822,-500.0,0.00026873,2]
[387848317,1758928239832,-500.0,0.00026873,2]
[387848318,1758928239843,-500.0,0.00026873,2]
[387848319,1758928239853,-500.0,0.00026873,2]
[387848320,1758928239863,-500.0,0.00026873,2]
[387848321,1758928239874,-500.0,0.00026873,2]
[387848322,1758928239884,-400.37286141,0.00026873,2]
[387848323,1758928239896,-500.0,0.00026873,2]
[387848324,1758928239907,-500.0,0.00026873,2]
[387848325,1758928239918,-500.0,0.00026873,2]
[387848326,1758928239929,-500.0,0.00026873,2]
[387848327,1758928239940,-580.34035072,0.00026873,2]
[387848328,1758928239950,-260.78132566,0.00026873,2]
[387848329,1758928239961,-500.0,0.00026873,2]
[387848330,1758928239971,-500.0,0.00026873,2]
[387848331,1758928239981,-500.0,0.00026873,2]
[387848332,1758928239991,-503.6976261,0.00026873,2]
[387848334,1758928240002,-500.0,0.00026873,2]
[387848336,1758928240013,-182.63603941,0.00026873,2]
[387848338,1758928240023,-500.0,0.00026873,2]
[387848340,1758928240034,-500.0,0.00026873,2]
[387848343,1758928240045,-500.0,0.00026873,2]
[387848345,1758928240056,-500.0,0.00026873,2]
[387848347,1758928240068,-500.0,0.00026873,2]
[387848349,1758928240079,-500.0,0.00026873,2]
[387848351,1758928240091,-500.0,0.00026873,2]
[387848353,1758928240101,-500.0,0.00026873,2]
[387848355,1758928240111,-509.55518768,0.00026873,2]
[387848357,1758928240125,-500.0,0.00026873,2]
[387848359,1758928240135,-500.0,0.00026873,2]
[387848361,1758928240147,-500.0,0.00026873,2]
[387848363,1758928240157,-500.0,0.00026873,2]
[387848365,1758928240167,-568.98373301,0.00026873,2]
[387848367,1758928240178,-500.0,0.00026873,2]
[387848369,1758928240189,-500.0,0.00026873,2]
[387848371,1758928240203,-500.0,0.00026873,2]
[387848373,1758928240214,-501.10514898,0.00026873,2]
[387848375,1758928240225,-500.0,0.00026873,2]
[387848377,1758928240236,-500.0,0.00026873,2]
[387848379,1758928240246,-500.0,0.00026873,2]
[387848381,1758928240257,-500.0,0.00026873,2]
[387848384,1758928240267,-500.0,0.00026873,2]
[387848386,1758928240278,-500.0,0.00026873,2]
[387848388,1758928240288,-500.0,0.00026873,2]
[387848389,1758928240298,-151.0,0.00026873,2]
[387848391,1758928240309,-207.76084726,0.00026873,2]
[387848393,1758928240319,-151.0,0.00026873,2]
[387848395,1758928240330,-151.51217291,0.00026873,2]
[387848398,1758928240340,-500.0,0.00026873,2]
[387848400,1758928240350,-269.33264938,0.00026873,2]
[387848401,1758928240360,-151.0,0.00026873,2]
[387848404,1758928240372,-152.12966294,0.00026873,2]
[387848406,1758928240382,-151.0,0.00026873,2]
[387848408,1758928240396,-264.0088733,0.00026873,2]
[387848410,1758928240407,-151.0,0.00026873,2]
[387848412,1758928240420,-577.0,0.00026873,2]
[387848414,1758928240431,-151.0,0.00026873,2]
[387848416,1758928240441,-151.0,0.00026873,2]
[387848418,1758928240452,-158.6496239,0.00026873,2]
[387848420,1758928240463,-151.0,0.00026873,2]
[387848422,1758928240474,-151.0,0.00026873,2]
[387848424,1758928240485,-151.0,0.00026873,2]
[387848427,1758928240496,-151.0,0.00026873,2]
[387848428,1758928240507,-291.1441014,0.00026873,2]
[387848431,1758928240518,-151.0,0.00026873,2]
[387848433,1758928240529,-151.0,0.00026873,2]
[387848435,1758928240545,-151.0,0.00026873,2]
[387848437,1758928240559,-151.0,0.00026873,2]
[387848439,1758928240571,-500.0,0.00027112,2]
[387848441,1758928240582,-196.08091635,0.00027147,2]
[387848443,1758928240593,-151.0,0.00027147,2]
[387848445,1758928240604,-500.0,0.00027147,2]
[387848447,1758928240614,-151.0,0.00027147,2]
[387848449,1758928240624,-297.01791068,0.00027147,2]
[387848451,1758928240635,-577.0,0.00027147,2]
[387848453,1758928240646,-151.0,0.00027147,2]
[387848455,1758928240658,-151.0,0.00027147,2]
[387848457,1758928240668,-151.0,0.00027147,2]
[387848459,1758928240680,-247.61315356,0.00027147,2]
[387848461,1758928240691,-151.0,0.00027147,2]
[387848463,1758928240701,-344.20214603,0.00027229,2]
[387848465,1758928240712,-344.20214603,0.00027229,2]
[387848467,1758928240723,-344.20214603,0.00027229,2]
[387848469,1758928240734,-344.20214603,0.00027229,2]
[387848471,1758928240746,-274.55268585,0.00027259,7]
[387848473,1758928240757,-500.0,0.00027386,2]
[387848475,1758928240768,-344.20214603,0.00027393,4]
[387848477,1758928240778,-344.20214603,0.00027393,4]
[387848479,1758928240789,-14238.2519406,0.00027411,2]
[387848481,1758928240800,-1197.90916067,0.00027411,2]
[387848483,1758928240811,-318.5,0.00027411,3]
[387848485,1758928240822,-159.25,0.00027411,3]
[387848487,1758928240832,-159.25,0.00027411,3]
[387848489,1758928240843,-592.89,0.00027411,3]
[387848491,1758928240853,-571.49,0.00027411,3]
[387848493,1758928240863,-2000.0,0.00027416,5]
[387848495,1758928240873,-1000.0,0.00027416,5]
[387848497,1758928240883,-1500.0,0.00027416,5]
[387848499,1758928240894,-2000.0,0.00027416,5]
[387848501,1758928240904,-531.69247496,0.00027416,5]
[387848503,1758928240914,-2000.0,0.00027416,5]
[387848505,1758928240925,-1000.0,0.00027421,5]
[387848507,1758928240935,-1000.0,0.00027421,5]
[387848509,1758928240945,-1000.0,0.00027421,5]
[387848511,1758928240956,-1000.0,0.00027421,5]
[387848513,1758928240966,-1000.0,0.00027421,2]
[387848515,1758928240976,-500.0,0.00027421,5]
[387848517,1758928240991,-1000.0,0.00027421,5]
[387848519,1758928241002,-634.02245345,0.00027421,2]
[387848521,1758928241015,-1000.0,0.00027421,5]
[387848523,1758928241026,-1000.0,0.00027421,5]
[387848525,1758928241038,-1019.25803842,0.00027421,5]
[387848527,1758928241049,-1000.0,0.00027421,5]
[387848529,1758928241059,-1006.33932215,0.00027421,5]
[387848531,1758928241071,-1000.0,0.00027421,5]
[387848533,1758928241081,-500.0,0.00027421,5]
[387848535,1758928241091,-1000.0,0.00027421,5]
[387848537,1758928241102,-1000.0,0.00027421,5]
[387848539,1758928241112,-1000.0,0.00027421,5]
[387848541,1758928241123,-699.9352921,0.00027421,5]
[387848543,1758928241133,-1000.0,0.00027421,5]
[387848545,1758928241144,-1000.0,0.00027421,5]
[387848547,1758928241153,-1000.0,0.00027421,5]
[387848549,1758928241164,-1000.0,0.00027421,5]
[387848551,1758928241174,-766.1219387,0.00027421,5]
[387848554,1758928241266,-1000.0,0.00027421,5]
[387848556,1758928241277,-1000.0,0.00027421,5]
[387848558,1758928241288,-979.17215397,0.00027421,5]
[387848560,1758928241298,-501.40236165,0.00027421,5]
[387848562,1758928241309,-500.0,0.00027421,5]
[387848564,1758928241319,-1000.0,0.00027421,5]
[387848566,1758928241329,-1000.0,0.00027421,5]
[387848569,1758928241341,-501.41992364,0.00027421,5]
[387848571,1758928241352,-208.76171828,0.00027421,5]
[387848572,1758928241362,-412.02670785,0.00027421,5]
[387848574,1758928241372,-501.68761577,0.00027421,5]
[387848576,1758928241382,-1000.0,0.00027421,5]
[387848578,1758928241392,-1000.0,0.00027421,5]
[387848580,1758928241405,-1000.0,0.00027421,5]
[387848582,1758928241416,-1000.0,0.00027421,5]
[387848584,1758928241426,-151.0,0.00027421,2]
[387848586,1758928241437,-164.14397422,0.00027421,2]
[387848588,1758928241448,-151.0,0.00027421,2]
[387848590,1758928241458,-577.0,0.00027421,2]
[387848592,1758928241469,-151.0,0.00027421,2]
[387848594,1758928241480,-151.0,0.00027421,2]
[387848596,1758928241490,-151.0,0.00027421,2]
[387848598,1758928241500,-2547.99,0.00027463,3]
[387848600,1758928241511,-1273.99,0.00027463,3]
[387848602,1758928241521,-637.0,0.00027463,3]
[387848604,1758928241533,-500.0,0.00027473,5]
[387848606,1758928241543,-500.0,0.00027473,5]
[387848608,1758928241555,-754.95,0.00027522,2]
[387848610,1758928241568,-344.20214603,0.00027557,6]
[387848612,1758928241580,-344.20214603,0.00027557,6]
[387848614,1758928241591,-5000.0,0.00027622,2]
[387848616,1758928241603,-500.0,0.0002766,2]
[387848617,1758928241614,-151.0,0.00027695,2]
[387848619,1758928241624,-151.0,0.00027695,2]
[387848621,1758928241635,-577.0,0.00027695,2]
[387848623,1758928241647,-151.0,0.00027695,2]
[387848625,1758928241657,-151.0,0.00027695,2]
[387848627,1758928241667,-151.0,0.00027695,2]
[387848629,1758928241677,-160.0,0.00027715,2]
[387848631,1758928241687,-344.20214603,0.00027721,8]
[387848632,1758928241697,-344.20214603,0.00027721,8]
[387848634,1758928241710,-344.20214603,0.00027721,8]
[387848636,1758928241722,-420.0,0.00027869,2]
[387848638,1758928241732,-300.0,0.00027869,2]
[387848640,1758928241743,-420.0,0.00027869,2]
[387848642,1758928241753,-344.20214603,0.00027885,10]
[387848644,1758928241763,-344.20214603,0.00027885,10]
[387848646,1758928241775,-344.20214603,0.00027885,10]
[387848648,1758928241784,-500.0,0.00027934,2]
[387848650,1758928241794,-197.63,0.00027958,3]
[387848651,1758928241803,-2500.0,0.00027964,5]
[387848652,1758928241814,-2500.0,0.00027964,5]
[387848653,1758928241824,-2500.0,0.00027964,5]
[387848654,1758928241835,-746.00271183,0.00027968,5]
[387848655,1758928241846,-1500.0,0.00027968,5]
[387848656,1758928241868,-503.92029813,0.00027968,5]
[387848657,1758928241880,-165.94254313,0.00027968,5]
[387848658,1758928241892,-500.0,0.00027968,2]
[387848659,1758928241903,-336.92824945,0.00027968,5]
[387848660,1758928241914,-1500.0,0.00027968,5]
[387848661,1758928241925,-1500.0,0.00027968,5]
[387848662,1758928241937,-1500.0,0.00027968,5]
[387848663,1758928241947,-500.0,0.00027968,5]
[387848664,1758928241958,-241.13254712,0.00027968,5]
[387848665,1758928241970,-565.99501549,0.00027968,5]
[387848666,1758928241982,-1500.0,0.00027968,5]
[387848667,1758928241995,-1007.20091411,0.00027968,5]
[387848668,1758928242007,-1176.24628901,0.00027968,5]
[387848669,1758928242019,-508.83544185,0.00027968,5]
[387848670,1758928242030,-1500.0,0.00027968,5]
[387848671,1758928242042,-1500.0,0.00027968,5]
[387848672,1758928242053,-1008.65777358,0.00027968,5]
[387848673,1758928242065,-1500.0,0.00027968,5]
[387848674,1758928242077,-1500.0,0.00027968,5]
[387848675,1758928242089,-1500.0,0.00027968,5]
[387848676,1758928242101,-1001.02255061,0.00027968,5]
[387848677,1758928242112,-1012.79700513,0.00027968,5]
[387848678,1758928242125,-1500.0,0.00027968,5]
[387848679,1758928242137,-151.0,0.00027969,2]
[387848680,1758928242149,-245.0,0.00027969,2]
[387848681,1758928242161,-577.0,0.00027969,2]
[387848682,1758928242172,-198.0,0.00027969,2]
[387848683,1758928242183,-183.72493642,0.00027969,2]
[387848684,1758928242194,-192.16542769,0.00027969,2]
[387848685,1758928242206,-1680.0,0.00027994,2]
[387848686,1758928242217,-502.12833857,0.00028021,5]
[387848687,1758928242228,-500.0,0.00028044,5]
[387848688,1758928242239,-500.0,0.00028044,5]
[387848689,1758928242250,-500.0,0.00028044,5]
[387848690,1758928242261,-500.0,0.00028044,5]
[387848691,1758928242272,-500.0,0.00028044,5]
[387848692,1758928242282,-500.0,0.00028044,5]
[387848693,1758928242293,-500.0,0.00028044,5]
[387848694,1758928242304,-500.0,0.00028044,5]
[387848695,1758928242315,-500.0,0.00028044,5]
[387848696,1758928242327,-500.0,0.00028044,5]
[387848697,1758928242339,-500.0,0.00028044,2]
[387848698,1758928242350,-500.0,0.00028044,5]
[387848699,1758928242361,-500.0,0.00028044,5]
[387848700,1758928242371,-500.0,0.00028044,5]
[387848701,1758928242382,-500.0,0.00028044,5]
[387848702,1758928242394,-174.89639363,0.00028044,5]
[387848703,1758928242405,-500.0,0.00028044,5]
[387848704,1758928242416,-500.0,0.00028208,2]
[387848705,1758928242427,-199.0,0.00028219,14]
[387848706,1758928242438,-198.0,0.00028243,2]
[387848707,1758928242449,-577.0,0.00028243,2]
[387848708,1758928242461,-260.0,0.00028263,2]
[387848709,1758928242472,-500.0,0.00028482,2]
[387848710,1758928242482,-14238.2519406,0.00028496,2]
[387848711,1758928242493,-1197.90916067,0.00028496,2]
[387848712,1758928242504,-736.31684772,0.00028512,5]
[387848713,1758928242515,-3000.0,0.00028512,5]
[387848714,1758928242526,-528.30750259,0.00028512,5]
[387848715,1758928242537,-2000.0,0.00028516,5]
[387848716,1758928242550,-2000.0,0.00028516,5]
[387848717,1758928242562,-2000.0,0.00028516,5]
[387848718,1758928242574,-1100.6141563,0.00028516,5]
[387848719,1758928242585,-2000.0,0.00028516,5]
[387848720,1758928242595,-2000.0,0.00028516,5]
[387848721,1758928242609,-166.03558889,0.00028516,5]
[387848722,1758928242621,-500.0,0.00028516,5]
[387848723,1758928242632,-266.52701878,0.00028516,5]
[387848724,1758928242645,-478.78102613,0.00028516,5]
[387848725,1758928242655,-577.0,0.00028517,2]
[387848726,1758928242774,-150.0,0.00028573,5]
[387848727,1758928242785,-1000.0,0.00028592,5]
[387848728,1758928242796,-1000.0,0.00028592,5]
[387848729,1758928242806,-1000.0,0.00028592,5]
[387848730,1758928242816,-1000.0,0.00028592,5]
[387848732,1758928242827,-1000.0,0.00028592,5]
[387848733,1758928242838,-1000.0,0.00028592,5]
[387848734,1758928242848,-1000.0,0.00028592,5]
[387848735,1758928242859,-693.31081902,0.00028592,5]
[387848736,1758928242869,-1000.0,0.00028592,5]
[387848737,1758928242879,-1000.0,0.00028592,5]
[387848739,1758928242890,-1001.2679899,0.00028592,2]
[387848740,1758928242900,-1000.0,0.00028592,5]
[387848741,1758928242911,-1000.0,0.00028592,5]
[387848742,1758928242921,-1000.0,0.00028592,5]
[387848743,1758928242932,-1004.04198193,0.00028592,5]
[387848744,1758928242943,-274.55268585,0.00028731,10]
[387848745,1758928242954,-500.0,0.00028756,2]
[387848746,1758928242964,-637.0,0.00028781,3]
[387848747,1758928242974,-318.5,0.00028781,3]
[387848748,1758928242984,-318.5,0.00028781,3]
[387848749,1758928242995,-577.0,0.00028791,2]
[387848750,1758928243005,-360.0,0.00028811,2]
[387848751,1758928243016,-5095.98,0.00028833,3]
[387848752,1758928243026,-2547.98,0.00028833,3]
[387848753,1758928243036,-1274.0,0.00028833,3]
[387848754,1758928243047,-199.0,0.00028904,15]
[387848755,1758928243058,-177.0,0.00028904,31]
[387848756,1758928243069,-233.71402077,0.00029,10]
[387848758,1758928243079,-1680.0,0.0002902,2]
[387848759,1758928243089,-500.0,0.0002903,2]
[387848760,1758928243099,-500.0,0.0002906,5]
[387848761,1758928243110,-2500.0,0.00029064,5]
[387848762,1758928243120,-2500.0,0.00029064,5]
[387848763,1758928243132,-500.0,0.00029064,5]
[387848764,1758928243142,-510.82669321,0.00029064,5]
[387848765,1758928243153,-577.0,0.00029065,2]
[387848766,1758928243163,-250.0,0.00029121,5]
[387848767,1758928243174,-644.79157611,0.00029122,2]
[387848768,1758928243185,-529.37620879,0.0002914,5]
[387848769,1758928243196,-582.10734104,0.0002914,5]
[387848770,1758928243208,-1500.0,0.0002914,5]
[387848771,1758928243219,-1500.0,0.0002914,5]
[387848772,1758928243231,-1500.0,0.0002914,5]
[387848773,1758928243243,-1132.95012963,0.0002914,5]
[387848774,1758928243254,-1484.8258088,0.0002914,5]
[387848775,1758928243265,-1500.0,0.0002914,5]
[387848776,1758928243275,-324.83863169,0.0002914,5]
[387848777,1758928243286,-1500.0,0.0002914,5]
[387848778,1758928243297,-1500.0,0.0002914,5]
[387848779,1758928243307,-1500.0,0.0002914,5]
[387848780,1758928243317,-166.37053027,0.00029253,5]
[387848781,1758928243327,-395.26,0.00029328,3]
[387848782,1758928243337,-577.0,0.00029339,2]
[387848783,1758928243347,-460.0,0.00029359,2]
[387848784,1758928243357,-2738.6609681,0.00029612,5]
[387848785,1758928243367,-500.0,0.00029612,5]
[387848786,1758928243377,-577.0,0.00029613,2]
[387848787,1758928243387,-350.0,0.00029668,5]
[387848788,1758928243398,-500.0,0.00029688,5]
[387848789,1758928243423,-1503.62900369,0.00029688,5]
[387848790,1758928243443,-1721.55878961,0.00029688,5]
[387848791,1758928243467,-2000.0,0.00029688,5]
[387848792,1758928243484,-1667.76495872,0.00029688,5]
[387848793,1758928243503,-2000.0,0.00029688,5]
[387848794,1758928243525,-2000.0,0.00029688,5]
[387848795,1758928243545,-714.41622431,0.00029825,2]
[387848796,1758928243568,-577.0,0.00029887,2]
[387848798,1758928243587,-560.0,0.00029907,2]
[387848799,1758928243606,-152.30656426,0.00030131,14]
[387848800,1758928243622,-151.0,0.00030131,14]
[387848801,1758928243644,-1000.0,0.00030136,120]
[387848802,1758928243658,-577.0,0.00030161,2]
[387848804,1758928243674,-587.0,0.00030168,2]
[387848806,1758928243689,-274.55268585,0.00030203,13]
[387848807,1758928243705,-400.54343057,0.00030216,5]
[387848808,1758928243720,-2500.0,0.00030236,5]
[387848809,1758928243736,-1500.0,0.00030236,5]
[387848810,1758928243754,-1380.77396067,0.00030236,5]
[387848811,1758928243769,-1000.0,0.00030273,120]
[387848812,1758928243785,-16196.97920903,0.00030335,2]
[387848813,1758928243801,-821.86975659,0.000304,14]
[387848814,1758928243817,-151.53827853,0.00030405,14]
[387848815,1758928243833,-1000.0,0.0003041,120]
[387848816,1758928243849,-577.0,0.00030435,2]
[387848817,1758928243865,-2351.0,0.0003044,2]
[387848818,1758928243880,-660.0,0.00030455,2]
[387848819,1758928243896,-1000.0,0.00030547,120]
[387848820,1758928243911,-151.0,0.00030598,2]
[387848821,1758928243926,-151.0,0.00030598,2]
[387848822,1758928243941,-151.0,0.00030598,2]
[387848823,1758928243957,-500.0,0.00030598,2]
[387848824,1758928243973,-151.0,0.00030598,2]
[387848825,1758928243989,-151.0,0.00030598,2]
[387848826,1758928244004,-151.0,0.00030598,2]
[387848827,1758928244019,-151.0,0.00030598,2]
[387848828,1758928244034,-35154.67843294,0.00030632,2]
[387848829,1758928244050,-1000.0,0.00030684,120]
[387848830,1758928244064,-577.0,0.00030709,2]
[387848831,1758928244080,-500.0,0.00030729,5]
[387848832,1758928244096,-500.0,0.00030729,5]
[387848833,1758928244111,-500.0,0.00030729,5]
[387848834,1758928244126,-500.0,0.00030729,5]
[387848835,1758928244141,-501.09363103,0.00030732,5]
[387848836,1758928244156,-500.0,0.00030732,5]
[387848837,1758928244172,-14238.2519406,0.00030763,2]
[387848838,1758928244186,-1197.90916067,0.00030763,2]
[387848839,1758928244202,-500.0,0.00030773,5]
[387848840,1758928244217,-340.90360339,0.00030773,5]
[387848841,1758928244232,-556.89393737,0.00030773,5]
[387848842,1758928244248,-500.0,0.00030773,5]
[387848843,1758928244264,-500.0,0.00030773,5]
[387848844,1758928244279,-500.0,0.00030773,5]
[387848845,1758928244294,-500.0,0.00030773,5]
[387848846,1758928244309,-417.15472785,0.00030777,2]
[387848847,1758928244324,-233.71402077,0.00030779,2]
[387848848,1758928244446,-3000.0,0.00030784,5]
[387848849,1758928244457,-511.97124642,0.00030792,5]
[387848850,1758928244467,-500.0,0.00030792,5]
[387848851,1758928244478,-500.0,0.00030792,5]
[387848852,1758928244488,-500.0,0.00030792,5]
[387848853,1758928244498,-151.0,0.00030793,14]
[387848854,1758928244507,-637.88810355,0.00030811,2]
[387848855,1758928244518,-1000.0,0.00030821,120]
[387848856,1758928244528,-156.96730782,0.0003086,14]
[387848857,1758928244538,-500.0,0.00030872,2]